fUSD/lending_fUSD_20240521
["ID","MTS","AMOUNT","RATE_DAILY","PERIOD"]
[327607217,1716251455362,-705.32,0.0003863,6]
[327607220,1716251455375,-517.86,0.0003863,6]
[327607222,1716251455388,-2351.42,0.0003863,6]
[327607224,1716251455402,-1117.45,0.0003863,6]
[327607227,1716251455416,-981.99,0.0003863,6]
[327607229,1716251455437,-642.14,0.0003863,6]
[327607231,1716251455450,-500.0,0.0003863,6]
[327607233,1716251455463,-1065.99,0.0003863,6]
[327607236,1716251455476,-500.0,0.0003863,6]
[327607238,1716251455489,-228.384483,0.0003863,14]
[327607240,1716251455502,-2269.11,0.0003863,6]
[327607243,1716251455515,-500.0,0.0003863,6]
[327607245,1716251455528,-500.0,0.0003863,6]
[327607247,1716251455541,-1279.14,0.0003863,6]
[327607250,1716251455553,-8972.99,0.0003863,6]
[327607252,1716251455566,-1568.55,0.0003863,6]
[327607254,1716251455578,-500.0,0.0003863,6]
[327607256,1716251455591,-500.0,0.0003863,6]
[327607259,1716251455603,-1359.52,0.0003863,6]
[327607261,1716251455616,-500.0,0.0003863,6]
[327607263,1716251455629,-1401.11,0.0003863,6]
[327607265,1716251455641,-847.2,0.0003863,6]
[327607268,1716251455659,-500.0,0.0003863,6]
[327607270,1716251455676,-1114.06,0.0003863,6]
[327607273,1716251455689,-500.0,0.0003863,6]
[327607275,1716251455701,-542.98,0.0003863,6]
[327607277,1716251455714,-677.29,0.0003863,6]
[327607279,1716251455726,-500.0,0.0003863,6]
[327607282,1716251455737,-1353.79,0.0003863,6]
[327607284,1716251455750,-841.87,0.0003863,6]
[327607286,1716251455762,-3907.87,0.0003863,6]
[327607289,1716251455774,-4709.21,0.0003863,6]
[327607291,1716251455786,-502.03,0.0003863,6]
[327607293,1716251455798,-285.51091895,0.0003863,6]
[327607295,1716251455810,-1285.86,0.0003863,6]
[327607298,1716251455822,-1940.73,0.0003863,6]
[327607300,1716251455834,-1162.42,0.0003863,6]
[327607302,1716251455845,-1744.52,0.0003863,6]
[327607304,1716251455856,-1105.6,0.0003863,6]
[327607307,1716251455868,-5203.02,0.0003863,6]
[327607309,1716251455880,-500.0,0.0003863,6]
[327607311,1716251455892,-866.31,0.0003863,6]
[327607314,1716251455906,-2237.01,0.0003863,6]
[327607316,1716251455922,-674.42,0.0003863,6]
[327607318,1716251455934,-733.56,0.0003863,6]
[327607320,1716251455948,-2959.12,0.0003863,6]
[327607323,1716251455959,-500.0,0.0003863,6]
[327607325,1716251455971,-500.0,0.0003863,6]
[327607327,1716251455985,-2093.66,0.0003863,6]
[327607329,1716251455997,-500.0,0.0003863,6]
[327607332,1716251456009,-1454.15,0.0003863,6]
[327607334,1716251456022,-500.0,0.0003863,6]
[327607336,1716251456034,-1094.1,0.0003863,6]
[327607339,1716251456046,-1521.84,0.0003863,6]
[327607341,1716251456057,-500.0,0.0003863,6]
[327607343,1716251456069,-500.0,0.0003863,6]
[327607345,1716251456081,-684.11,0.0003863,6]
[327607347,1716251456092,-686.34,0.0003863,6]
[327607350,1716251456104,-573.81,0.0003863,6]
[327607352,1716251456116,-1791.89,0.0003863,6]
[327607354,1716251456127,-3166.0,0.0003863,6]
[327607356,1716251456139,-1024.74,0.0003863,6]
[327607359,1716251456150,-500.0,0.0003863,6]
[327607361,1716251456163,-5699.46,0.0003863,6]
[327607363,1716251456179,-500.0,0.0003863,6]
[327607366,1716251456190,-3044.47,0.0003863,6]
[327607368,1716251456201,-1672.78,0.0003863,6]
[327607370,1716251456213,-500.0,0.0003863,6]
[327607372,1716251456225,-1721.96,0.0003863,6]
[327607375,1716251456237,-500.0,0.0003863,6]
[327607377,1716251456249,-151.0,0.0003863,14]
[327607379,1716251456260,-500.0,0.0003863,6]
[327607381,1716251456272,-500.0,0.0003863,6]
[327607384,1716251456284,-756.61,0.0003863,6]
[327607386,1716251456296,-151.0,0.0003863,14]
[327607388,1716251456308,-1479.87,0.0003863,6]
[327607391,1716251456320,-1535.04,0.0003863,6]
[327607393,1716251456331,-500.0,0.0003863,6]
[327607395,1716251456342,-500.0,0.0003863,6]
[327607397,1716251456353,-500.0,0.0003863,6]
[327607399,1716251456365,-1559.59,0.0003863,6]
[327607402,1716251456376,-500.0,0.0003863,6]
[327607404,1716251456388,-500.0,0.0003863,6]
[327607406,1716251456399,-2236.41,0.0003863,6]
[327607408,1716251456411,-617.02,0.0003863,6]
[327607410,1716251456426,-6486.87,0.0003863,6]
[327607413,1716251456438,-2785.16,0.0003863,6]
[327607414,1716251456449,-16755.93,0.0003863,6]
[327607415,1716251456460,-500.0,0.0003863,6]
[327607416,1716251456472,-151.0,0.0003863,14]
[327607417,1716251456483,-1241.47,0.0003863,6]
[327607418,1716251456495,-841.48,0.0003863,6]
[327607419,1716251456507,-500.0,0.0003863,6]
[327607420,1716251456519,-1316.58,0.0003863,6]
[327607421,1716251456530,-535.78,0.0003863,6]
[327607422,1716251456542,-711.83,0.0003863,6]
[327607424,1716251456554,-500.0,0.0003863,6]
[327607427,1716251456566,-680.54,0.0003863,6]
[327607429,1716251456576,-167.74,0.0003863,6]
[327607431,1716251456588,-151.0,0.0003863,14]
[327607433,1716251456600,-1538.96,0.0003863,6]
[327607436,1716251456611,-1688.49,0.0003863,6]
[327607438,1716251456622,-703.18,0.0003863,6]
[327607440,1716251456633,-9386.09,0.0003863,6]
[327607442,1716251456645,-991.12,0.0003863,6]
[327607445,1716251456656,-627.68,0.0003863,6]
[327607447,1716251456671,-687.31,0.0003863,6]
[327607449,1716251456681,-500.0,0.0003863,6]
[327607451,1716251456693,-151.0,0.0003863,14]
[327607453,1716251456704,-2529.68,0.0003863,6]
[327607456,1716251456715,-500.0,0.0003863,6]
[327607458,1716251456727,-1896.67,0.0003863,6]
[327607460,1716251456738,-629.33,0.0003863,6]
[327607462,1716251456750,-1793.82,0.0003863,6]
[327607465,1716251456762,-2507.79,0.0003863,6]
[327607467,1716251456774,-17307.91,0.0003863,6]
[327607469,1716251456786,-500.0,0.0003863,6]
[327607472,1716251456798,-1433.57,0.0003863,6]
[327607474,1716251456808,-978.06,0.0003863,6]
[327607476,1716251456820,-500.0,0.0003863,6]
[327607478,1716251456831,-151.0,0.0003863,14]
[327607480,1716251456844,-500.0,0.0003863,6]
[327607483,1716251456855,-500.0,0.0003863,6]
[327607485,1716251456867,-500.0,0.0003863,6]
[327607487,1716251456879,-682.9,0.0003863,6]
[327607489,1716251456891,-10955.78,0.0003863,6]
[327607492,1716251456902,-500.0,0.0003863,6]
[327607494,1716251456914,-500.0,0.0003863,6]
[327607496,1716251456929,-2328.78,0.0003863,6]
[327607498,1716251456940,-500.0,0.0003863,6]
[327607500,1716251456951,-602.13,0.0003863,6]
[327607503,1716251456965,-2028.01,0.0003863,6]
[327607505,1716251456977,-500.0,0.0003863,6]
[327607507,1716251456988,-667.77,0.0003863,6]
[327607509,1716251457002,-500.0,0.0003863,6]
[327607512,1716251457019,-1739.6,0.0003863,6]
[327607514,1716251457030,-500.0,0.0003863,6]
[327607516,1716251457042,-2536.9,0.0003863,6]
[327607518,1716251457054,-690.96,0.0003863,6]
[327607520,1716251457064,-518.55,0.0003863,6]
[327607523,1716251457076,-4829.56,0.0003863,6]
[327607525,1716251457090,-151.0,0.0003863,14]
[327607527,1716251457101,-994.59,0.0003863,6]
[327607529,1716251457113,-1704.74,0.0003863,6]
[327607532,1716251457127,-2754.3,0.0003863,6]
[327607534,1716251457140,-500.0,0.0003863,6]
[327607536,1716251457152,-500.0,0.0003863,6]
[327607538,1716251457163,-4117.16,0.0003863,6]
[327607541,1716251457177,-500.0,0.0003863,6]
[327607543,1716251457189,-889.48,0.0003863,6]
[327607545,1716251457200,-692.97,0.0003863,6]
[327607547,1716251457212,-1256.25,0.0003863,6]
[327607550,1716251457223,-2906.3,0.0003863,6]
[327607552,1716251457235,-500.0,0.0003863,6]
[327607554,1716251457248,-726.42,0.0003863,6]
[327607556,1716251457259,-500.0,0.0003863,6]
[327607559,1716251457271,-2336.63,0.0003863,6]
[327607561,1716251457282,-636.09,0.0003863,6]
[327607563,1716251457293,-987.99,0.0003863,6]
[327607565,1716251457304,-500.0,0.0003863,6]
[327607568,1716251457316,-1461.94,0.0003863,6]
[327607570,1716251457328,-3165.26,0.0003863,6]
[327607572,1716251457340,-500.0,0.0003863,6]
[327607574,1716251457351,-500.0,0.0003863,6]
[327607577,1716251457362,-886.698867,0.0003863,14]
[327607579,1716251457371,-3423.45,0.0003863,6]
[327607580,1716251457381,-2131.25,0.0003863,6]
[327607583,1716251457390,-500.0,0.0003863,6]
[327607585,1716251457400,-960.07,0.0003863,6]
[327607587,1716251457410,-5782.82,0.0003863,6]
[327607589,1716251457420,-151.0,0.0003863,14]
[327607590,1716251457429,-886.698867,0.0003863,14]
[327607593,1716251457438,-953.4,0.0003863,6]
[327607595,1716251457447,-579.21,0.0003863,6]
[327607597,1716251457457,-1094.99,0.0003863,6]
[327607598,1716251457466,-500.0,0.0003863,6]
[327607600,1716251457475,-500.0,0.0003863,6]
[327607602,1716251457485,-1576.43,0.0003863,6]
[327607605,1716251457495,-1295.25,0.0003863,6]
[327607607,1716251457504,-4989.71,0.0003863,6]
[327607608,1716251457513,-2086.05,0.0003863,6]
[327607610,1716251457522,-2412.79,0.0003863,6]
[327607612,1716251457531,-1653.34,0.0003863,6]
[327607614,1716251457540,-500.0,0.0003863,6]
[327607616,1716251457549,-500.0,0.0003863,6]
[327607618,1716251457558,-500.0,0.0003863,6]
[327607620,1716251457568,-1049.87,0.0003863,6]
[327607622,1716251457577,-500.0,0.0003863,6]
[327607624,1716251457586,-500.0,0.0003863,6]
[327607627,1716251457596,-2352.79,0.0003863,6]
[327607629,1716251457604,-6218.2,0.0003863,6]
[327607631,1716251457614,-500.0,0.0003863,6]
[327607632,1716251457624,-500.0,0.0003863,6]
[327607634,1716251457633,-500.0,0.0003863,6]
[327607637,1716251457644,-500.0,0.0003863,6]
[327607638,1716251457653,-520.26,0.0003863,6]
[327607641,1716251457663,-500.0,0.0003863,6]
[327607643,1716251457674,-582.23463393,0.0003863,6]
[327607644,1716251457683,-534.64,0.0003863,6]
[327607647,1716251457693,-1569.14,0.0003863,6]
[327607649,1716251457702,-863.79,0.0003863,6]
[327607651,1716251457711,-2345.37,0.0003863,6]
[327607653,1716251457721,-3747.0,0.0003863,6]
[327607704,1716251458095,-3774.02,0.0003863,6]
[327607707,1716251458213,-1212.82,0.0003863,6]
[327607711,1716251458236,-500.0,0.0003863,6]
[327607714,1716251458261,-1022.64,0.0003863,6]
[327607718,1716251458282,-10146.12,0.0003863,6]
[327607720,1716251458294,-1053.61,0.0003863,6]
[327607722,1716251458303,-151.0,0.0003863,14]
[327607724,1716251458312,-3132.38,0.0003863,6]
[327607726,1716251458322,-500.0,0.0003863,6]
[327607728,1716251458331,-815.41,0.0003863,6]
[327607730,1716251458340,-500.0,0.0003863,6]
[327607732,1716251458350,-2062.45,0.0003863,6]
[327607734,1716251458359,-1425.55,0.0003863,6]
[327607736,1716251458368,-500.0,0.0003863,6]
[327607738,1716251458377,-2000.0,0.0003863,30]
[327607740,1716251458387,-5655.32,0.0003863,6]
[327607742,1716251458396,-500.0,0.0003863,6]
[327607744,1716251458405,-523.2,0.0003863,6]
[327607746,1716251458414,-2780.83,0.0003863,6]
[327607748,1716251458425,-500.0,0.0003863,6]
[327607750,1716251458435,-1968.02,0.0003863,6]
[327607752,1716251458444,-500.0,0.0003863,6]
[327607754,1716251458454,-3911.95,0.0003863,6]
[327607756,1716251458463,-2488.85,0.0003863,6]
[327607758,1716251458472,-500.0,0.0003863,6]
[327607760,1716251458481,-2811.7,0.0003863,6]
[327607762,1716251458490,-500.0,0.0003863,6]
[327607764,1716251458499,-870.87,0.0003863,6]
[327607766,1716251458508,-1067.47,0.0003863,6]
[327607768,1716251458518,-516.62,0.0003863,6]
[327607770,1716251458527,-500.0,0.0003863,6]
[327607772,1716251458537,-500.0,0.0003863,6]
[327607774,1716251458546,-553.85,0.0003863,6]
[327607776,1716251458556,-1323.2,0.0003863,6]
[327607778,1716251458565,-822.28,0.0003863,6]
[327607780,1716251458574,-500.0,0.0003863,6]
[327607782,1716251458584,-500.0,0.0003863,6]
[327607785,1716251458594,-551.69,0.0003863,6]
[327607786,1716251458604,-576.1,0.0003863,6]
[327607788,1716251458614,-3765.45,0.0003863,6]
[327607790,1716251458623,-1752.05,0.0003863,6]
[327607791,1716251458632,-2816.84,0.0003863,6]
[327607792,1716251458641,-3504.32,0.0003863,6]
[327607793,1716251458650,-4387.75,0.0003863,6]
[327607794,1716251458659,-908.42,0.0003863,6]
[327607795,1716251458668,-1285.91,0.0003863,6]
[327607796,1716251458679,-500.0,0.0003863,6]
[327607797,1716251458688,-151.0,0.0003863,14]
[327607798,1716251458697,-500.0,0.0003863,6]
[327607799,1716251458706,-2306.59,0.0003863,6]
[327607800,1716251458715,-500.0,0.0003863,6]
[327607801,1716251458724,-500.0,0.0003863,6]
[327607803,1716251458733,-627.67,0.0003863,6]
[327607805,1716251458742,-155.79145114,0.00038643,7]
[327607807,1716251458751,-1300.0,0.000387,14]
[327607809,1716251458761,-1565.2946698,0.00038718,2]
[327607811,1716251458770,-176.06453139,0.00038767,2]
[327607813,1716251458780,-1727.66885119,0.00038779,12]
[327607815,1716251458789,-277.23084675,0.00038786,3]
[327607817,1716251458799,-1600.0,0.000388,14]
[327607819,1716251458808,-214.0,0.00038804,2]
[327607821,1716251458817,-150.0,0.00038826,2]
[327607823,1716251458826,-150.0,0.00038831,2]
[327607825,1716251458836,-150.0,0.00038834,2]
[327607827,1716251458845,-150.0,0.00038841,2]
[327607829,1716251458854,-150.0,0.00038843,2]
[327607831,1716251458863,-150.0,0.00038845,2]
[327607833,1716251458872,-3000.0,0.0003885,2]
[327607835,1716251458882,-150.0,0.00038859,2]
[327607837,1716251458891,-150.0,0.0003886,2]
[327607839,1716251458900,-150.0,0.00038864,2]
[327607841,1716251458910,-1000.0,0.00038865,40]
[327607843,1716251458924,-500.0,0.00038865,20]
[327607845,1716251458933,-150.0,0.00038869,2]
[327607847,1716251458943,-173.0,0.00038874,15]
[327607849,1716251458953,-7353.40820421,0.0003888,30]
[327607851,1716251458962,-150.5,0.00038884,15]
[327607853,1716251458971,-631.811,0.00038885,2]
[327607855,1716251458981,-150.5,0.00038894,15]
[327607857,1716251458991,-150.0,0.00038896,2]
[327607859,1716251459001,-300.0,0.000389,14]
[327607861,1716251459010,-500.0,0.00038904,6]
[327607863,1716251459019,-500.0,0.00038904,6]
[327607865,1716251459028,-500.0,0.00038904,6]
[327607867,1716251459038,-500.0,0.00038904,6]
[327607869,1716251459047,-550.85,0.00038904,6]
[327607871,1716251459056,-873.14,0.00038904,6]
[327607873,1716251459065,-520.78,0.00038904,6]
[327607875,1716251459074,-500.0,0.00038904,6]
[327607877,1716251459084,-329.15913145,0.00038904,6]
[327607879,1716251459092,-500.0,0.00038904,6]
[327607881,1716251459102,-500.0,0.00038904,6]
[327607883,1716251459111,-500.0,0.00038904,6]
[327607885,1716251459120,-500.0,0.00038904,6]
[327607887,1716251459130,-500.0,0.00038904,6]
[327607889,1716251459139,-500.0,0.00038904,6]
[327607891,1716251459149,-982.49,0.00038904,6]
[327607893,1716251459159,-563.38,0.00038904,6]
[327607895,1716251459167,-500.0,0.00038904,6]
[327607897,1716251459178,-500.0,0.00038904,6]
[327607899,1716251459187,-500.0,0.00038904,6]
[327607901,1716251459196,-650.8,0.00038904,6]
[327607903,1716251459205,-613.19,0.00038904,6]
[327607905,1716251459214,-500.0,0.00038904,6]
[327607907,1716251459223,-500.0,0.00038904,6]
[327607909,1716251459232,-500.0,0.00038904,6]
[327607911,1716251459241,-530.6,0.00038904,6]
[327607913,1716251459250,-529.18,0.00038904,6]
[327607915,1716251459260,-588.88,0.00038904,6]
[327607917,1716251459269,-574.33256141,0.00038904,6]
[327607919,1716251459278,-500.0,0.00038904,6]
[327607921,1716251459288,-500.0,0.00038904,6]
[327607923,1716251459297,-741.25,0.00038904,6]
[327607925,1716251459306,-615.55345256,0.00038904,6]
[327607927,1716251459315,-500.0,0.00038904,6]
[327607929,1716251459324,-550.19,0.00038904,6]
[327607931,1716251459333,-500.0,0.00038904,6]
[327607933,1716251459345,-500.0,0.00038904,6]
[327607935,1716251459359,-500.0,0.00038904,6]
[327607937,1716251459369,-679.64,0.00038904,6]
[327607939,1716251459378,-593.91,0.00038904,6]
[327607941,1716251459388,-539.97,0.00038904,6]
[327607943,1716251459397,-500.0,0.00038904,6]
[327607945,1716251459407,-500.0,0.00038904,6]
[327607947,1716251459416,-500.0,0.00038904,6]
[327607949,1716251459429,-500.0,0.00038904,6]
[327607951,1716251459438,-609.78,0.00038904,6]
[327607953,1716251459448,-151.0,0.00038904,14]
[327607955,1716251459457,-500.0,0.00038904,6]
[327607957,1716251459466,-500.0,0.00038904,6]
[327607959,1716251459475,-500.0,0.00038904,6]
[327607961,1716251459484,-500.0,0.00038904,6]
[327607963,1716251459494,-500.0,0.00038904,6]
[327607965,1716251459503,-254.637505,0.00038904,14]
[327607967,1716251459512,-500.0,0.00038904,6]
[327607969,1716251459522,-500.0,0.00038904,6]
[327607971,1716251459531,-500.0,0.00038904,6]
[327607973,1716251459540,-598.79,0.00038904,6]
[327607975,1716251459549,-745.97,0.00038904,6]
[327607977,1716251459559,-500.0,0.00038904,6]
[327607979,1716251459568,-500.0,0.00038904,6]
[327607981,1716251459577,-500.0,0.00038904,6]
[327607983,1716251459586,-500.0,0.00038904,6]
[327607985,1716251459595,-500.0,0.00038904,6]
[327607987,1716251459604,-500.48,0.00038904,6]
[327607989,1716251459613,-500.0,0.00038904,6]
[327607991,1716251459622,-500.0,0.00038904,6]
[327607993,1716251459631,-500.0,0.00038904,6]
[327607995,1716251459640,-583.23,0.00038904,6]
[327607997,1716251459650,-500.0,0.00038904,6]
[327607999,1716251459658,-776.5,0.00038904,6]
[327608001,1716251459667,-500.0,0.00038904,6]
[327608004,1716251459679,-500.0,0.00038904,6]
[327608006,1716251459688,-500.0,0.00038904,6]
[327608008,1716251459698,-500.0,0.00038904,6]
[327608010,1716251459707,-500.0,0.00038904,6]
[327608012,1716251459716,-500.0,0.00038904,6]
[327608014,1716251459726,-500.0,0.00038904,6]
[327608016,1716251459735,-500.0,0.00038904,6]
[327608018,1716251459743,-500.0,0.00038904,6]
[327608020,1716251459752,-500.0,0.00038904,6]
[327608022,1716251459761,-692.16,0.00038904,6]
[327608024,1716251459770,-500.0,0.00038904,6]
[327608026,1716251459779,-500.0,0.00038904,6]
[327608028,1716251459788,-755.29,0.00038904,6]
[327608030,1716251459797,-898.56,0.00038904,6]
[327608032,1716251459806,-500.0,0.00038904,6]
[327608034,1716251459816,-500.0,0.00038904,6]
[327608036,1716251459825,-614.24,0.00038904,6]
[327608038,1716251459834,-500.0,0.00038904,6]
[327608040,1716251459843,-500.0,0.00038904,6]
[327608042,1716251459852,-685.07,0.00038904,6]
[327608044,1716251459861,-586.95,0.00038904,6]
[327608046,1716251459871,-500.0,0.00038904,6]
[327608048,1716251459880,-619.87505925,0.00038904,6]
[327608050,1716251459888,-500.0,0.00038904,6]
[327608052,1716251459898,-500.0,0.00038904,6]
[327608054,1716251459916,-500.0,0.00038904,6]
[327608056,1716251459935,-160.55,0.00038904,6]
[327608058,1716251459945,-1113.15,0.00038904,6]
[327608060,1716251459954,-500.0,0.00038904,6]
[327608062,1716251459963,-500.0,0.00038904,6]
[327608064,1716251459972,-500.0,0.00038904,6]
[327608066,1716251459982,-500.0,0.00038904,6]
[327608068,1716251459991,-500.0,0.00038904,6]
[327608070,1716251460001,-725.38,0.00038904,6]
[327608072,1716251460011,-500.0,0.00038904,6]
[327608074,1716251460020,-500.0,0.00038904,6]
[327608076,1716251460030,-985.85,0.00038904,6]
[327608078,1716251460039,-500.0,0.00038904,6]
[327608080,1716251460048,-883.37,0.00038904,6]
[327608082,1716251460057,-500.0,0.00038904,6]
[327608084,1716251460067,-500.0,0.00038904,6]
[327608086,1716251460077,-500.0,0.00038904,6]
[327608088,1716251460087,-1548.91,0.00038904,6]
[327608090,1716251460096,-500.0,0.00038904,6]
[327608092,1716251460107,-1005.7,0.00038904,6]
[327608094,1716251460117,-571.34,0.00038904,6]
[327608096,1716251460127,-500.0,0.00038904,6]
[327608098,1716251460136,-846.43,0.00038904,6]
[327608100,1716251460145,-655.22,0.00038904,6]
[327608102,1716251460155,-568.99,0.00038904,6]
[327608104,1716251460164,-500.0,0.00038904,6]
[327608107,1716251460174,-500.0,0.00038904,6]
[327608108,1716251460184,-500.0,0.00038904,6]
[327608110,1716251460193,-507.9,0.00038904,6]
[327608112,1716251460202,-787.32,0.00038904,6]
[327608115,1716251460212,-500.0,0.00038904,6]
[327608117,1716251460221,-500.0,0.00038904,6]
[327608118,1716251460231,-500.0,0.00038904,6]
[327608121,1716251460240,-500.0,0.00038904,6]
[327608123,1716251460251,-888.88,0.00038904,6]
[327608125,1716251460260,-500.0,0.00038904,6]
[327608126,1716251460270,-668.03,0.00038904,6]
[327608129,1716251460282,-575.63,0.00038904,6]
[327608131,1716251460291,-1152.64,0.00038904,6]
[327608133,1716251460301,-584.66,0.00038904,6]
[327608135,1716251460311,-500.0,0.00038904,6]
[327608137,1716251460320,-500.0,0.00038904,6]
[327608139,1716251460330,-525.02,0.00038904,6]
[327608141,1716251460339,-500.0,0.00038904,6]
[327608143,1716251460349,-992.41,0.00038904,6]
[327608145,1716251460358,-500.0,0.00038904,6]
[327608147,1716251460368,-1163.35,0.00038904,6]
[327608149,1716251460377,-500.0,0.00038904,6]
[327608151,1716251460386,-686.58,0.00038904,6]
[327608153,1716251460395,-1053.14,0.00038904,6]
[327608155,1716251460405,-1185.54,0.00038904,6]
[327608157,1716251460414,-500.03,0.00038904,6]
[327608159,1716251460425,-500.0,0.00038904,6]
[327608161,1716251460434,-500.0,0.00038904,6]
[327608163,1716251460443,-500.0,0.00038904,6]
[327608165,1716251460452,-500.0,0.00038904,6]
[327608167,1716251460461,-500.0,0.00038904,6]
[327608169,1716251460471,-2000.0,0.00038904,2]
[327608171,1716251460480,-886.98,0.00038904,6]
[327608173,1716251460489,-200.0,0.00038904,2]
[327608175,1716251460499,-1776.68,0.00038904,6]
[327608177,1716251460508,-300.0,0.00038904,6]
[327608179,1716251460517,-554.6,0.00038904,6]
[327608181,1716251460526,-1578.11,0.00038904,6]
[327608183,1716251460536,-500.0,0.00038904,6]
[327608185,1716251460545,-211.27598036,0.00038904,6]
[327608187,1716251460555,-500.0,0.00038904,6]
[327608189,1716251460564,-500.0,0.00038904,6]
[327608191,1716251460573,-807.4,0.00038904,6]
[327608193,1716251460582,-500.0,0.00038904,6]
[327608195,1716251460591,-588.6,0.00038904,6]
[327608197,1716251460600,-1528.2,0.00038904,6]
[327608199,1716251460610,-522.33,0.00038904,6]
[327608201,1716251460619,-500.0,0.00038904,6]
[327608203,1716251460629,-576.74,0.00038904,6]
[327608204,1716251460638,-500.0,0.00038904,6]
[327608205,1716251460648,-500.0,0.00038904,6]
[327608206,1716251460657,-500.0,0.00038904,6]
[327608207,1716251460666,-500.0,0.00038904,6]
[327608208,1716251460678,-760.73,0.00038904,6]
[327608209,1716251460687,-823.2,0.00038904,6]
[327608210,1716251460696,-779.47,0.00038904,6]
[327608211,1716251460706,-1646.98,0.00038904,6]
[327608212,1716251460715,-500.0,0.00038904,6]
[327608213,1716251460725,-500.0,0.00038904,6]
[327608215,1716251460734,-542.07,0.00038904,6]
[327608217,1716251460744,-721.22,0.00038904,6]
[327608219,1716251460753,-730.1,0.00038904,6]
[327608221,1716251460763,-996.36,0.00038904,6]
[327608223,1716251460773,-688.74,0.00038904,6]
[327608225,1716251460783,-500.0,0.00038904,6]
[327608227,1716251460792,-500.0,0.00038904,6]
[327608229,1716251460801,-587.21,0.00038904,6]
[327608232,1716251460811,-500.0,0.00038904,6]
[327608234,1716251460820,-532.96,0.00038904,6]
[327608236,1716251460830,-1201.29,0.00038904,6]
[327608238,1716251460839,-644.66,0.00038904,6]
[327608240,1716251460848,-500.0,0.00038904,6]
[327608242,1716251460857,-565.18,0.00038904,6]
[327608244,1716251460866,-516.6,0.00038904,6]
[327608246,1716251460875,-500.0,0.00038904,6]
[327608248,1716251460884,-500.0,0.00038904,6]
[327608249,1716251460893,-500.0,0.00038904,6]
[327608252,1716251460904,-500.0,0.00038904,6]
[327608253,1716251460914,-1308.76,0.00038904,6]
[327608256,1716251460929,-500.0,0.00038904,6]
[327608258,1716251460938,-602.65,0.00038904,6]
[327608260,1716251460948,-722.53,0.00038904,6]
[327608262,1716251460958,-500.0,0.00038904,6]
[327608264,1716251460967,-500.0,0.00038904,6]
[327608266,1716251460976,-500.0,0.00038904,6]
[327608268,1716251460986,-151.0,0.00038904,14]
[327608270,1716251460997,-500.0,0.00038904,6]
[327608272,1716251461006,-500.0,0.00038904,6]
[327608274,1716251461017,-500.0,0.00038904,6]
[327608276,1716251461027,-998.36,0.00038904,6]
[327608278,1716251461036,-1126.64,0.00038904,6]
[327608280,1716251461046,-958.61,0.00038904,6]
[327608282,1716251461056,-500.0,0.00038904,6]
[327608284,1716251461067,-1031.96,0.00038904,6]